{"text_format":"3","workbook":"xlsx","n_sheets":7,"sheets":["Summary","Bill 1 - P&G","Bill 2 - SHE","Bill 3 - Environmental","Bill 4 - Alteration","Bill 5 - Fence","Bill 6 - Security"],"not_rendered":{"images":5,"external_links":10,"defined_names":1106},"read":"whole","date_system":"1900"}

{"sheet":"Summary","index":0,"n_rows":36,"n_cols":5,"rows_kept":36,"merged":[[7,0,7,3],[10,1,10,2],[12,1,12,3],[14,1,14,3],[18,1,18,2],[28,3,28,4],[33,3,33,4]]}
[]
["ESKOM HOLDINGS SOC LTD"]
["REFURBISHMENT OF THE HV YARD FENCING "]
["PELLY SUBSTATION"]
[]
[]
[]
["FINAL SUMMARY"]
[]
["BILL","DESCRIPTION",null,null," AMOUNT"]
[1,"PRELIMINARIES AND GENERAL",null,null,{"$f":"+'Bill 1 - P&G'!I63","v":0}]
[]
[2,"SHEQ",null,null,{"$f":"+'Bill 2 - SHE'!G121","v":0}]
[]
[3,"ENVIRONMENTAL",null,null,{"$f":"+'Bill 3 - Environmental'!G81","v":0}]
[]
[4,"ALTERATIONS",null,null,{"$f":"+'Bill 4 - Alteration'!H81","v":0}]
[]
[5,"FENCING ",null,null,{"$f":"+'Bill 5 - Fence'!H71","v":0}]
[]
[{"$f":"+A19+1","v":6},"SECURITY ",null,null,{"$f":"+'Bill 6 - Security'!H26","v":0}]
[]
[null,"Sub-Total ",null,null,{"$f":"SUM(E11:E22)","v":0}]
[]
["ADD","VAT @ 15%",null,null,{"$f":"+E23*15%","v":0}]
[null,"TOTAL AMOUNT CARRIED TO FORM OF OFFER ",null,null,{"$f":"SUM(E23:E25)","v":0}]
[]
[]
[]
["……………………………….............",null,null,"…………………………………….."]
["Signature of Tenderer",null,null,"Date:"]
[]
[]
[]
["……………………………….............",null,null,"…………………………………….."]
["Name of Tenderer",null,null,"Designation "]

{"sheet":"Bill 1 - P&G","index":1,"n_rows":63,"n_cols":9,"rows_kept":63,"merged":[[6,1,7,1],[6,2,7,2],[6,3,7,3],[6,4,7,4]]}
[]
[null,"ESKOM HOLDINGS SOC LTD"]
[null,{"$f":"+Summary!A3","v":"REFURBISHMENT OF THE HV YARD FENCING "}]
[null,"PELLY SUBSTATION"]
[]
[null,"Note: All cells locked - data to be entered into the rate column only."]
[null,"ITEM","REFERENCE","DESCRIPTION","UNIT","FIXED CHARGE","VALUE RELATED","TIME RELATED","TOTAL AMOUNT"]
[{"$nulls":5},"(1)","(2)","(3)","(1+2+3)"]
[]
[]
[{"$nulls":3},"BILL NO. 1 - PRELIMINARY AND GENERAL"]
[]
[{"$nulls":3},"(Applicable to the whole of the Works) "]
[]
[]
[{"$nulls":3},"Notes to Tenderers:"]
[]
[{"$nulls":3},"The following bills in this section, are according to the \"SABS 1200 System for Measuring Civil Works\" as published by the SABS."]
[]
[{"$nulls":3},"The Contractor shall price Bill No. 1 - Preliminary and General in respect of all payment required for any work, risk, contingency or obligation whatsoever, that is not described in the Bill of Quantities and which is his responsibility under the Contract"]
[]
[]
[null,null,"SABS 1200A","PRELIMINARY AND GENERAL "]
[]
[]
[null,null,"SABS 1200A.8.3","SCHEDULED ITEMS FIXED CHARGE, VALUE RELATED & TIME RELATED "]
[]
[null,1,"SABS 1200A.8.3.1\nSABS 1200A.8.4.1","Contractual requirements.","Sum",{"$nulls":3},{"$f":"SUM(F28:H28)","v":0}]
[]
[null,{"$f":"1+B28","v":2},"SABS 1200A.8.3.2.1b\nSANS 1200A.8.4.2.1b","Telephone. ","Sum",{"$nulls":3},{"$f":"SUM(F30:H30)","v":0}]
[]
[null,null,"SABS 1200A.8.3.2.2\nSABS 1200A.8.4.2.2","Facilities for Contractor:"]
[]
[null,{"$f":"B30+1","v":3},"SABS 1200A.8.3.2.2a\nSABS 1200A.8.4.2.2a","Offices and storage sheds.","Sum",{"$nulls":3},{"$f":"SUM(F34:H34)","v":0}]
[null,{"$f":"B34+1","v":4},"SABS 1200A.8.3.2.2b\nSABS 1200A.8.4.2.2b","Workshops. ","Sum",{"$nulls":3},{"$f":"SUM(F35:H35)","v":0}]
[]
[null,{"$f":"B35+1","v":5},"SABS 1200A.8.3.2.2c\nSABS 1200A.8.4.2.2c","Laboratories. ","Sum",{"$nulls":3},{"$f":"SUM(F37:H37)","v":0}]
[]
[null,{"$f":"+B37+1","v":6},"SABS 1200A.8.3.2.2e\nSABS 1200A.8.4.2.2e","Ablution and latrine facilities (chemical portable toilets to be well maintained / serviced for the entire duration of the contract).","Sum",{"$nulls":3},{"$f":"SUM(F39:H39)","v":0}]
[]
[null,{"$f":"B39+1","v":7},"SABS 1200A.8.3.2.2f\nSABS 1200A.8.4.2.2f","Tools and equipment. ","Sum",{"$nulls":3},{"$f":"SUM(F41:H41)","v":0}]
[]
[null,{"$f":"B41+1","v":8},"SABS 1200A.8.3.2.2g\nSABS 1200A.8.4.2.2g","Water supplies (including transporting of water to site in water cart for construction purposes and supplying of potable water), electric power, compressed air supply and communications (are ALL to be made available from the beginning of the contract and for the entire duration of the contract).","Sum",{"$nulls":3},{"$f":"SUM(F43:H43)","v":0}]
[]
[null,null,"SABS 1200A.8.3.2.2h\nSABS 1200A.8.4.2.2h","Dealing with water."]
[]
[null,{"$f":"B43+1","v":9},null,"The Contractor is to ALLOW for all necessary keeping excavations free from water, for the entire duration of the contract, or as deemed necessary to complete this contract successfully. The price is to include for all piping, pumps, discharging of water into suitable outlet points, standby generator/s, etc., complete.","Sum",{"$nulls":3},{"$f":"SUM(F47:H47)","v":0}]
[]
[null,{"$f":"B47+1","v":10},"SABS 1200A.8.3.2.2i\nSABS 1200A.8.4.2.2i","Access to the site.","Sum",{"$nulls":3},{"$f":"SUM(F49:H49)","v":0}]
[]
[null,{"$f":"B49+1","v":11},"SABS 1200A.8.3.2.2j\nSABS 1200A.8.4.2.2j","Plant. ","Sum",{"$nulls":3},{"$f":"SUM(F51:H51)","v":0}]
[]
[null,{"$f":"B51+1","v":12},"SABS 1200A.8.4.3","Supervision for duration of construction. ","Sum",{"$nulls":3},{"$f":"SUM(F53:H53)","v":0}]
[]
[null,{"$f":"B53+1","v":13},null,"Company and head office overhead costs for duration of construction. ","Sum",{"$nulls":3},{"$f":"SUM(F55:H55)","v":0}]
[]
[null,{"$f":"B55+1","v":14},"SABS 1200A.8.3.4","Removal of entire site establishment, upon completion of the project, including making good and rehabilitation of areas utilized, all in accordance with the latest Environmental Management requirements.","Sum",{"$nulls":3},{"$f":"SUM(F57:H57)","v":0}]
[]
[{"$nulls":3},"Corporate Socio-Investment (CSI)"]
[null,16,null,"2.5% of project budget for identified socio-upliftment programmes or initiation","Sum",{"$nulls":3},{"$f":"SUM(F60:H60)","v":0}]
[]
[]
[{"$nulls":3},"Total Carried Forward to Main Summary Page",null,{"$f":"SUBTOTAL(109,F13:F62)","v":0},{"$f":"SUBTOTAL(109,G13:G62)","v":0},{"$f":"SUBTOTAL(109,H13:H62)","v":0},{"$f":"SUM(I9:I62)","v":0}]

{"sheet":"Bill 2 - SHE","index":2,"n_rows":121,"n_cols":7,"rows_kept":121,"merged":[[1,3,2,6],[6,1,7,1],[6,2,7,2],[6,3,7,3],[6,4,7,4],[6,5,7,5],[6,6,7,6]]}
[]
[null,"ESKOM HOLDINGS SOC LTD"]
[null,{"$f":"+Summary!A3","v":"REFURBISHMENT OF THE HV YARD FENCING "}]
[null,{"$f":"+'Bill 1 - P&G'!B4","v":"PELLY SUBSTATION"}]
[]
[null,"Note: All cells locked - data to be entered into the rate column only."]
[null,"ITEM","DESCRIPTION","UNIT","FIXED COST RATE","TIME RELATED RATE","AMOUNT"]
[]
[]
[]
[null,null,"BILL NO. 2 - HEALTH AND SAFETY"]
[]
[null,null,"Contractor to price items applicable for the execution of the works under this contract."]
[]
[null,null,"SUPPLY OF ALL ITEMS OF PERSONAL PROTECTIVE CLOTHING / EQUIPMENT & ENSURE USE THEREOF FOR FULL COMPLIANCE"]
[]
[null,1,"Steel toe capped safety boots.","sum",null,null,{"$f":"SUM(E17:F17)","v":0}]
[]
[null,{"$f":"1+B17","v":2},"Overall - 2 piece suit with luminous strap for employees (at least two per employee).","sum",null,null,{"$f":"SUM(E19:F19)","v":0}]
[]
[null,{"$f":"1+B19","v":3},"Gloves as per risk assessment.","sum",null,null,{"$f":"SUM(E21:F21)","v":0}]
[]
[null,{"$f":"1+B21","v":4},"Hard hats with adjustable 3 point webbing chin strap as per SANS 1397","sum",null,null,{"$f":"SUM(E23:F23)","v":0}]
[]
[null,{"$f":"1+B23","v":5},"Climber's Hard hats with adjustable 3 point webbing chin strap as per SANS 1397","sum",null,null,{"$f":"SUM(E25:F25)","v":0}]
[]
[null,{"$f":"1+B25","v":6},"Ear protection (earplugs etc.) as per risk assessment","sum",null,null,{"$f":"SUM(E27:F27)","v":0}]
[]
[null,{"$f":"1+B27","v":7},"Eye protection appropriate to task performed","sum",null,null,{"$f":"SUM(E29:F29)","v":0}]
[]
[null,{"$f":"1+B29","v":8},"Dust Mask as per risk assessment","sum",null,null,{"$f":"SUM(E31:F31)","v":0}]
[]
[]
[]
[null,null,"Other - (Contractor to Specify): "]
[null,{"$f":"1+B31","v":9}]
[]
[null,{"$f":"1+B36","v":10}]
[]
[null,{"$f":"1+B38","v":11}]
[]
[]
[null,null,"SUPPLY AND PROVISION OF EQUIPMENT FOR WORKING AT HEIGHTS & ENSURE USE THEREOF FOR FULL COMPLIANCE TO THE OHS ACT AND ESKOM'S SHE SPEC"]
[]
[]
[null,{"$f":"1+B40","v":12},"Double lanyard saftey harness","sum",null,null,{"$f":"SUM(E46:F46)","v":0}]
{"$rows_empty":7}
[null,null,"Total Carried forward",{"$nulls":3},{"$f":"SUM(G15:G52)","v":0}]
[]
[]
[null,null,"Total Brought forward",{"$nulls":3},{"$f":"G54","v":0}]
[]
[]
[]
[]
[]
[null,null,"BARRICADING"]
[]
[null,null,"Supply, erection and maintenance of all temporary barricading which would be required during construction to make the site safe in accordance with the OHS Act, SHE spec and CEMPr. "]
[]
[null,{"$f":"1+B46","v":13},"Barracading shall be in accordance to Eskom requirements i.e. Rigid barracading and be in accordance to other legislative or Eskom requirements.","sum",null,null,{"$f":"SUM(E67:F67)","v":0}]
[]
[]
[]
[null,null,"AUDITS"]
[]
[null,null,"Availability of Principal Contractor resources & systems and provision of audits to ensure compliance"]
[]
[null,{"$f":"1+B67","v":14},"Third party legal Compliance Verification audits","sum",null,null,{"$f":"SUM(E75:F75)","v":0}]
[]
[]
[null,null,"SHE FILE"]
[]
[null,null,"Recording & availability of SHE File/Site"]
[]
[null,{"$f":"1+B75","v":15},"Compile and maintain SHE file, all SHE records shall be submitted to the client as per the client hand-over checklist and they shall be in electronic format (USB/CD) and hard-copies as per the checklist i.e. identified records.","sum",null,null,{"$f":"SUM(E82:F82)","v":0}]
[]
[]
[]
[null,null,"COMPLIANCE"]
[]
[null,16,"Provision of all signage in terms of latest revision legislation","sum",null,null,{"$f":"SUM(E88:F88)","v":0}]
[]
[]
[]
[]
[]
[]
[null,null,"Total Carried forward",{"$nulls":3},{"$f":"SUM(G56:G92)","v":0}]
[]
[]
[null,null,"Total Brought forward",{"$nulls":3},{"$f":"G95","v":0}]
[]
[]
[]
[null,null,"HUMAN RESOURCES"]
[]
[null,{"$f":"1+B88","v":17},"Appointment of SAFETY OFFICER FULL TIME ON SITE Costs associated with the appointment of Safety personel and actual time spent on implementation, managing, documenting, monitoring, reviewing, internal  and external audits, incident investigations, reporting and mitigating safety related impacts and as per OHS Act and Client expected outputs. (The Safety Officer shall be registered with SACPCMP)","Sum",null,null,{"$f":"SUM(E104:F104)","v":0}]
[]
[null,{"$f":"1+B104","v":18}," Health & Safety Representative  (at least one per team)","Sum",null,null,{"$f":"SUM(E106:F106)","v":0}]
[]
[]
[null,null,"OCCUPATIONAL HEALTH"]
[]
[null,20,"Pre-employment medical screening","Sum",null,null,{"$f":"SUM(E111:F111)","v":0}]
[]
[null,{"$f":"1+B111","v":21},"Periodic Medical Screening (follow-up on identified medical condition, based on the project duration)","Sum",null,null,{"$f":"SUM(E113:F113)","v":0}]
[]
[null,{"$f":"1+B113","v":22},"Exit Medical Screening","Sum",null,null,{"$f":"SUM(E115:F115)","v":0}]
[]
[null,{"$f":"1+B115","v":23},"Biological tests (Employees exposed to Hazardous Chemical substances) based on the Risk Assessment, OEL & MSDS","Sum",null,null,{"$f":"SUM(E117:F117)","v":0}]
[]
[]
[]
[null,null,"Total Carried Forward to Main Summary Page",{"$nulls":3},{"$f":"SUM(G97:G120)","v":0}]

{"sheet":"Bill 3 - Environmental","index":3,"n_rows":81,"n_cols":7,"rows_kept":81,"merged":[[1,3,2,6],[6,1,7,1],[6,2,7,2],[6,3,7,3],[6,4,7,4],[6,5,7,5],[6,6,7,6]]}
[]
[null,"ESKOM HOLDINGS SOC LTD"]
[null,{"$f":"+Summary!A3","v":"REFURBISHMENT OF THE HV YARD FENCING "}]
[null,{"$f":"+'Bill 1 - P&G'!B4","v":"PELLY SUBSTATION"}]
[]
[null,"Note: All cells locked - data to be entered into the rate column only."]
[null,"ITEM","DESCRIPTION","UNIT","FIXED COST RATE","TIME RELATED RATE","AMOUNT"]
[]
[]
[]
[null,null,"BILL NO. 3 - ENVIRONMENTAL WORKS"]
[]
[null,null,"Contractor to price items applicable for the execution of the works under this contract."]
[]
[]
[null,null,"ENVIRONMENTAL MEASUREMENT AND PAYMENT AS PER THE SITE INFORMATION"]
[]
[null,{"$f":"1","v":1},"Environmental monitoring - dust, noise and water  (adhoc)","sum",null,null,{"$f":"SUM(E18:F18)","v":0}]
[]
[null,{"$f":"1+B18","v":2},"Dealing with sensitive vegetation (transplantation, search and rescue)","sum",null,null,{"$f":"SUM(E20:F20)","v":0}]
[]
[null,{"$f":"1+B20","v":3},"Fire management and control measures","sum",null,null,{"$f":"SUM(E22:F22)","v":0}]
[]
[]
[null,null,"WASTE MANAGEMENT (COSTS ASSOCIATED WITH MANAGEMENT OF GENERAL, HAZARDOUS WASTE, ETC.)"]
[]
[]
[null,{"$f":"B22","v":3},"Waste Bins, skips & lids and covers","sum",null,null,{"$f":"SUM(E28:F28)","v":0}]
[]
[null,{"$f":"1+B28","v":4},"General waste collection and disposal at a registered landfill site as per EMP requirements","sum",null,null,{"$f":"SUM(E30:F30)","v":0}]
[]
[null,{"$f":"1+B30","v":5},"Hazardous waste transportation and disposal at a registered facility","sum",null,null,{"$f":"SUM(E32:F32)","v":0}]
[]
[null,{"$f":"1+B32","v":6},"Costs associated with sewerage removal and disposal contracts.","sum",null,null,{"$f":"SUM(E34:F34)","v":0}]
[]
[null,{"$f":"1+B34","v":7},"Costs associated with the repair and maintenance of all sewerage pipes.  ","sum",null,null,{"$f":"SUM(E36:F36)","v":0}]
[]
[]
[null,null,"WASH BAYS (WHERE NEEDED OR NECESSARY)"]
[]
[null,{"$f":"1+B36","v":8},"Building of  Washbays & Workshops","sum",null,null,{"$f":"SUM(E41:F41)","v":0}]
[]
[null,{"$f":"1+B41","v":9},"Oil and water separator","sum",null,null,{"$f":"SUM(E43:F43)","v":0}]
[]
[]
[null,null,"POLLUTION PREVENTION AND CONTROL"]
[]
[null,{"$f":"1+B43","v":10},"Costs associated with dust suppression and remediation","sum",null,null,{"$f":"SUM(E48:F48)","v":0}]
[]
[]
[]
[null,null,"Total Carried forward",{"$nulls":3},{"$f":"SUM(G11:G50)","v":0}]
[]
[]
[null,null,"Total Brought forward",{"$nulls":3},{"$f":"G52","v":0}]
[]
[]
[]
[null,{"$f":"1+B48","v":11},"Oil spill kits","sum",null,null,{"$f":"SUM(E59:F59)","v":0}]
[]
[null,{"$f":"1+B59","v":12},"Drip trays","sum",null,null,{"$f":"SUM(E61:F61)","v":0}]
[]
[null,{"$f":"1+B61","v":13},"Temporal Containment of Waste (Bund walls or concrete surfaces)","sum",null,null,{"$f":"SUM(E63:F63)","v":0}]
[]
[]
[null,null,"LAND MANAGEMENT"]
[]
[null,{"$f":"1+B63","v":14},"Rehabilitation: Costs associated with the rehabilitation of disturbed land during construction.","sum",null,null,{"$f":"SUM(E68:F68)","v":0}]
[]
[null,{"$f":"1+B68","v":15},"Erosion control measures (berms, gabions, geo-mattress) - Where needed","sum",null,null,{"$f":"SUM(E70:F70)","v":0}]
[]
[null,{"$f":"1+B70","v":16},"Maintenance of access road","sum",null,null,{"$f":"SUM(E72:F72)","v":0}]
[]
[]
[null,null,"HUMAN RESOURCES"]
[]
[null,{"$f":"1+B72","v":17},"Appointment of Environmental Officer (EO) where applicable Costs associated with the appointment of environmental personnel and actual time spent on implementation, managing, documenting, monitoring, reviewing, internal and external audits, incident investigations and mitigating environmentally related impacts and rehabilitation (air, water, waste, land)","sum",null,null,{"$f":"SUM(E77:F77)","v":0}]
[]
[null,{"$f":"1+B77","v":18},"Appointment of Quality Officer (QO) where applicable Costs associated with the appointment of quality personnel and actual time spent on implementation, managing, documenting, monitoring, reviewing, internal and external audits.","sum",null,null,{"$f":"SUM(E79:F79)","v":0}]
[]
[null,null,"Total Carried Forward to Main Summary Page",{"$nulls":3},{"$f":"SUM(G54:G80)","v":0}]

{"sheet":"Bill 4 - Alteration","index":4,"n_rows":81,"n_cols":8,"rows_kept":81,"merged":[[5,1,6,1],[5,2,6,2],[5,3,6,3],[5,4,6,4],[5,5,6,5],[5,6,6,6],[5,7,6,7]]}
[]
[null,"ESKOM HOLDINGS SOC LTD"]
[null,{"$f":"+Summary!A3","v":"REFURBISHMENT OF THE HV YARD FENCING "}]
[null,{"$f":"+'Bill 1 - P&G'!B4","v":"PELLY SUBSTATION"}]
[null,"Note: All cells locked - data to be entered into the rate column only."]
[null,"ITEM","REFERENCE","DESCRIPTION","UNIT","QTY","RATE","AMOUNT"]
[]
[]
[]
[{"$nulls":3},"BILL NO. 4 - ALTERATIONS"]
[]
[]
[{"$nulls":3},"REMOVAL OF EXISTING WORK"]
[]
[{"$nulls":3},"PREAMBLES"]
[]
[{"$nulls":3},"The Tenderer is referred to the relevant clauses in the latest edition of the Model Preambles for Trades and to the Supplementary Preambles."]
[]
[]
[{"$nulls":3},"INNER FENCE"]
[]
[]
[{"$nulls":3},"SITE CLEARANCE ETC"]
[]
[null,1,null,"Digging up and removing rubbish, debris, vegetation,\nhedges, shrubs, bush, etc and trees not exceeding 200mm\ngirth","m2",3270,null,{"$f":"G25*F25","v":0}]
[]
[{"$nulls":3},"Removing yard stones"]
[]
[null,{"$f":"+B25+1","v":2},null,"Remove and reinstate existing yard stone (perimeter of fence allow atleast 1m apart)","m²",3270,null,{"$f":"G29*F29","v":0}]
[]
[{"$nulls":3},"Taking out/off and removing metalwork"]
[]
[null,{"$f":"+B29+1","v":3},null,"Existing inner fence 1m gate approximately ","No",3,null,{"$f":"G33*F33","v":0}]
[]
[null,{"$f":"+B33+1","v":4},null,"Existing inner fence 6m gate approximately ","No",16,null,{"$f":"G35*F35","v":0}]
[]
[null,{"$f":"+B35+1","v":5},null,"Existing inner fence 12m gate approximately ","No",3,null,{"$f":"G37*F37","v":0}]
[]
[null,{"$f":"+B37+1","v":6},null,"Remove existing 6m removeables panels and replace in accordance with Eskom engineers specification and to approval of clients/PM instructions","No",8,null,{"$f":"G39*F39","v":0}]
[]
[null,{"$f":"+B39+1","v":7},null,"Remove the four strands of barbed wire on the single overhang and replace in accordance with Eskom engineers specification and to approval of clients/PM instructions","m",1635,null,{"$f":"G41*F41","v":0}]
[]
[null,{"$f":"+B41+1","v":8},null,"Remove the existing approximately 1,80m high weld mesh and replace with new weld mesh in accordance with Eskom engineers specification and to approval of clients/PM instructions","m",1635,null,{"$f":"G43*F43","v":0}]
[]
[null,{"$f":"+B43+1","v":9},null,"Remove the rust stains with steel-wool. Care must be taken not to damage the galvanizing on the posts, stays and overhang.","No",545,null,{"$f":"G45*F45","v":0}]
[]
[{"$nulls":3},"Paintwork"]
[]
[{"$nulls":3},"All the posts, stays and overhang members must be painted."]
[]
[{"$nulls":3},"Surface preparation, coating application procedures and guarantees must be in accordance with Eskom specification 240-75883230 pages 12 to 16."]
[]
[{"$nulls":3},"The post and stay must be opened until the concrete is exposed"]
[]
[{"$nulls":3},"Remove the rust stains with steel-wool. Care must be taken not to damage the galvanizing on the posts, stays and overhang."]
[]
[{"$nulls":3},"Apply one coat plascon metalcare galvanized iron primer."]
[]
[null,{"$f":"+B45+1","v":10},null,"Strain posts","No",{"v":272.5,"d":"273"},null,{"$f":"G59*F59","v":0}]
[]
[null,{"$f":"+B59+1","v":11},null,"Struts ","No",273,null,{"$f":"G61*F61","v":0}]
[]
[null,{"$f":"+B61+1","v":12},null,"Corner posts ","No",70,null,{"$f":"G63*F63","v":0}]
[]
[null,{"$f":"+B63+1","v":13},null,"Intermediate posts ","No",545,null,{"$f":"G65*F65","v":0}]
[]
[{"$nulls":3},"Apply two coats plascon metalcare silvershine aluminium"]
[]
[null,{"$f":"+B65+1","v":14},null,"Strain posts","No",{"v":272.5,"d":"273"},null,{"$f":"G69*F69","v":0}]
[]
[null,{"$f":"+B69+1","v":15},null,"Struts ","No",273,null,{"$f":"G71*F71","v":0}]
[]
[null,{"$f":"+B71+1","v":16},null,"Corner posts ","No",70,null,{"$f":"G73*F73","v":0}]
[]
[null,{"$f":"+B73+1","v":17},null,"Intermediate posts ","No",545,null,{"$f":"G75*F75","v":0}]
[]
[{"$nulls":3},"Budgetory allowance"]
[]
[{"$nulls":3},"Allow budgetory R50 000 (Fifty Thousand) for rusted post to be removed and replaced.","Item",1,null,{"$f":"G79*F79","v":0}]
[]
[{"$nulls":3},"Total Carried Forward to Main Summary Page",{"$nulls":3},{"$f":"SUM(H8:H80)","v":0}]

{"sheet":"Bill 5 - Fence","index":5,"n_rows":71,"n_cols":8,"rows_kept":71,"merged":[[5,1,6,1],[5,2,6,2],[5,3,6,3],[5,4,6,4],[5,5,6,5],[5,6,6,6],[5,7,6,7]]}
[]
[null,"ESKOM HOLDINGS SOC LTD"]
[null,{"$f":"+Summary!A3","v":"REFURBISHMENT OF THE HV YARD FENCING "}]
[null,{"$f":"+'Bill 1 - P&G'!B4","v":"PELLY SUBSTATION"}]
[null,"Note: All cells locked - data to be entered into the rate column only."]
[null,"ITEM","REFERENCE","DESCRIPTION","UNIT","QTY","RATE","AMOUNT"]
[]
[]
[]
[{"$nulls":3},"BILL NO. 5 - SAFETY FENCE"]
[]
[]
[{"$nulls":3},"Notes to Tenderers:"]
[]
[{"$nulls":3},"All galvanized bolts to include for  \"re-threading\"."]
[]
[{"$nulls":3},"All fencing wire to comply to SABS 675:2011."]
[]
[{"$nulls":3},"For pricing purposes all items are to be read in conjunction with the tender drawings. No additional compensations will be made for any information shown on the drawings but not mentioned in the Bills of Quantities. The drawings take precedence over the Bills of Quantities."]
[]
[{"$nulls":3},"The Electrical installation for the 'Security Lighting' shall be in strict accordance with Eskom Drawings. The Tenderer is to allow for ALL items necessary for the COMPLETE Electrical installation, in their pricing.",{"$nulls":3},"  "]
[]
[{"$nulls":3},"Distribution Boards: ",{"$nulls":3},"  "]
[]
[{"$nulls":3},"The rates for miniature substations, HV switchgear, kiosks and distribution boards shall be deemed to include for all SABS and Eskom labels, etc.  ",{"$nulls":3},"  "]
[]
[{"$nulls":3},"Cables:",{"$nulls":3},"  "]
[]
[{"$nulls":3},"Cable lengths are measured from gland to gland. The price for cable shall be deemed to include for all fixings, clamps and ties, unless otherwise indicated. The price for cables measured in sleeve pipes or cable entry pipes shall be deemed to include for the feeding of the entire length of cable through the sleeve pipe or cable entry pipe.",{"$nulls":3},"  "]
[]
[{"$nulls":3},"The rates for cable terminations shall be deemed to include for lugs, tapes, core markers, drilling, glands, shrouds, tails or length of cable required to complete the termination to the equipment or switchgear.",{"$nulls":3},"  "]
[]
[{"$nulls":3},"Outlet and draw boxes:",{"$nulls":3},"  "]
[]
[{"$nulls":3},"No distinction shall be made for the number of entries in conduit boxes, draw boxes and draw trays.",{"$nulls":3},"  "]
[]
[{"$nulls":3},"Conductors:",{"$nulls":3},"  "]
[]
[{"$nulls":3},"No allowance has been made for additional length of conductors at connecting points. The price for conductors shall be deemed to include for any additional length as required.",{"$nulls":3},"  "]
[]
[{"$nulls":3},"General:",{"$nulls":3},"  "]
[]
[{"$nulls":3},"All work shall be measured nett as fixed in position, no allowance made for waste.",{"$nulls":3},"  "]
[]
[{"$nulls":3},"The description \"... surface mounted to brickwork, etc.\" shall be deemed to include for all surface mounting, including fixing to concrete, steel, wood or any other surface.",{"$nulls":3},"  "]
[]
[{"$nulls":3},"The rates for conduit outlet and draw boxes, wireways, distribution boards, trays, etc., shall be deemed to include for chasing, cutting and penetration of walls, floors, etc., as required.",{"$nulls":3},"  "]
[]
[{"$nulls":3},"Rates for all items shall include for the supply, installation and connection thereof complete, except where otherwise described."]
[]
[{"$nulls":3},"During the remeasurement of conductors and wireways on site, only the most practical economical route, within reason, shall be accepted for payment  "]
[]
[]
[{"$nulls":3},"SAFETY FENCING"]
[]
[]
[{"$nulls":3},"Supply, deliver and install new 1,83m high galvanized diamond mesh 'safety fence' complete (as detailed on Drawings 0.54 / 4963 Sheets 1 to 5 inclusive)"]
[]
[null,1,null,"'1,83m High galvanized wire fence, comprising 64mm x 64mm x 2,5mm diameter diamond mesh supported on and including 3 no. x 4mm diameter horizontal straining wires, mesh strained with 10mm diameter galvanized hook bolts, straining wires strained with 100mm long x 10mm diameter straining bolts, including all necessary hot dipped galvanized steel angle section, corner, intermediate, gate posts and stays, base plates, etc., casting posts in and including 20MPa/19mm concrete bases (refer detail on drawings), including excavation, backfilling and disposing of surplus excavated material, concrete, formwork, etc., all as per required layout (no overhang required):","m",{"v":1635,"d":"1635.00"},null,{"$f":"F59*G59","v":0}]
[]
[null,{"$f":"+B59+1","v":2},null,"'Extra over '1000mm long single-leaf Pedestrian gate type 'A' including 40mm diameter hot dipped galvanized steel tube framing, diamond mesh covering bound on with 2,5mm diameter galvanized wire, locking mechanism (padlock to be provided by Eskom), 3 no. hinges, etc., complete (provisional).","No",{"v":3,"d":"3.00"},null,{"$f":"F61*G61","v":0}]
[]
[null,{"$f":"+B61+1","v":3},null,"Extra over '6000mm long double-leaf Vehicular access gate type 'B' including 40mm diameter hot dipped galvanized steel tube framing and cross bracing, diamond mesh covering bound on with 2,5mm diameter galvanized wire, 460mm long x 8mm diameter chain link welded on (padlock to be provided by Eskom), 3 no. hinges per leaf, 280mm long tower bolt and 100mm long x 20mm diameter steel slot cast flush in top surface  of concrete (elsewhere measured), etc., complete.","No",{"v":16,"d":"16.00"},null,{"$f":"F63*G63","v":0}]
[]
[null,{"$f":"+B63+1","v":4},null,"Extra over '12000mm long double-leaf Vehicular access gate type 'B' including 40mm diameter hot dipped galvanized steel tube framing and cross bracing, diamond mesh covering bound on with 2,5mm diameter galvanized wire, 460mm long x 8mm diameter chain link welded on (padlock to be provided by Eskom), 3 no. hinges per leaf, 280mm long tower bolt and 100mm long x 20mm diameter steel slot cast flush in top surface  of concrete (elsewhere measured), etc., complete.","No",{"v":3,"d":"3.00"},null,{"$f":"F65*G65","v":0}]
[]
[{"$nulls":3},"Sundries:"]
[]
[null,{"$f":"+B65+1","v":5},null,"Earthing clamp bolted to gate upright and steel fence post, including drilling of holes, etc., complete (all in accordance with drawings 0.54/4963 and 0.54/6743)","No",{"v":66,"d":"66.00"},null,0]
[]
[{"$nulls":3},"Total Carried Forward to Main Summary Page",{"$nulls":3},{"$f":"SUM(H8:H70)","v":0}]

{"sheet":"Bill 6 - Security","index":6,"n_rows":26,"n_cols":8,"rows_kept":26,"merged":[[5,1,6,1],[5,2,6,2],[5,3,6,3],[5,4,6,4],[5,5,6,5],[5,6,6,6],[5,7,6,7]]}
[]
[null,"ESKOM HOLDINGS SOC LTD"]
[null,{"$f":"+Summary!A3","v":"REFURBISHMENT OF THE HV YARD FENCING "}]
[null,{"$f":"+'Bill 1 - P&G'!B4","v":"PELLY SUBSTATION"}]
[null,"Note: All cells locked - data to be entered into the rate column only."]
[null,"ITEM","REFERENCE","DESCRIPTION","UNIT","QTY","RATE","AMOUNT"]
[]
[]
[]
[{"$nulls":3},"BILL NO. 6 - SECURITY"]
[]
[{"$nulls":3},"SECURITY SERVICES"]
[]
[null,1,null,"2 x Armed security officers (PSIRA) grade C day shift with a Panic button linked to the Security control room to notify armed response. Rate inclusive of transportation cost, etc.","Months",{"v":4,"d":"4.00"},null,{"$f":"+F14*G14","v":0}]
[]
[null,2,null,"2 x Armed security officers (PSIRA) grade C night shift with a Panic button linked to the Security control room to notify armed response. Rate inclusive of transportation cost. etc.","Months",{"v":4,"d":"4.00"},null,{"$f":"+F16*G16","v":0}]
[]
[null,{"$f":"+B16+1","v":3},null,"Guard house, ablution facilities including all connections.","Months",{"v":4,"d":"4.00"},null,{"$f":"+F18*G18","v":0}]
[]
[null,5,null,"Bullet proof vests for each officer.","No.",{"v":4,"d":"4.00"},null,{"$f":"+F20*G20","v":0}]
[]
[null,{"$f":"+B20+1","v":6},null,"Two way radios for communication. ","No",{"v":4,"d":"4.00"},null,{"$f":"+F22*G22","v":0}]
[]
[null,{"$f":"+B22+1","v":7},null,"Breathalyser including calibration.","No.",{"v":2,"d":"2.00"},null,{"$f":"+F24*G24","v":0}]
[]
[{"$nulls":3},"Total Carried Forward to Main Summary Page",{"$nulls":3},{"$f":"SUM(H14:H25)","v":0}]